[Event "GER-ch Youth-U14 2022"]
[Site "Willingen"]
[Date "2022.06.05"]
[Round "1.12"]
[White "Udelnov, Valentin"]
[Black "Eichhorn, Valentin"]
[Result "1-0"]
[ECO "B40"]
[WhiteElo "1901"]
[BlackElo "1565"]
[Annotator "TA"]
[PlyCount "53"]
[EventDate "2022.06.05"]
[EventType "swiss"]
[EventRounds "9"]
[EventCountry "GER"]
[SourceTitle "playchess.com"]
[Source "ChessBase"]
[SourceQuality "1"]
[TimeControl "40/4500+30:900+30"]

{[%evp 11,52,-3,56,25,76,52,61,-62,-31,-49,3,12,90,101,220,177,198,186,245,232,571,562,548,561,522,418,569,537,541,31,29990,29991,29991,29992,29992,29993,29993,29994,29994,29995,29998,29999,29999]} 1. e4 {[%emt 0:00:00]} c5 {[%emt 0:00:00]} 2. Nf3 {[%emt 0:00:00]} e6 {[%emt 0:00:00]} 3. d4 {[%emt 0:00:00]} cxd4 {[%emt 0:00:00]} 4. Nxd4 {[%emt 0:00:00]} Nf6 {[%emt 0:00:00]} 5. Nc3 {[%emt 0:00:00]} Nc6 {[%emt 0:00:00]} 6. Bg5 {[%emt 0:02:47]} Qb6 {[%emt 0:17:18]} (6... h6 $11 7. Bh4 Be7) 7. Nb3 {[%emt 0:10:34] B45: Sicilian Four Knights.} (7. Bxf6 $5 gxf6 8. Nb3 $14) 7... a5 {[%emt 0:04:03] [#]} (7... Be7 $11) 8. Be3 $146 {[%emt 0:15:40]} ({Predecessor:} 8. a4 Bb4 9. Bxf6 gxf6 10. Be2 d6 11. O-O Bxc3 12. bxc3 Ne5 13. Qd4 Qxd4 14. cxd4 Ng6 {1-0 (26) Simon,P (1681)-Thuesen,M (2207) Marianske Lazne 2016}) 8... Qd8 {[%emt 0:00:58]} (8... Qb4 $2 9. a3 Qd6 10. Nb5 $18) 9. f4 {[%emt 0:07:14] White is more active.} (9. a3 $14) 9... Bb4 {[%emt 0:01:44] Hoping for ...Nxe4.} (9... a4 $5 {[%cal Ra4b3]} 10. e5 axb3 11. exf6 bxa2 12. Rxa2 Rxa2 13. Nxa2 Qxf6 $17) 10. Bd3 {[%emt 0:04:05]} d5 {[%emt 0:09:44]} (10... a4 $1 $15 11. Nd2 a3) 11. e5 $11 {[%emt 0:04:37]} d4 {[%emt 0:07:18]} (11... a4 $11 {remains equal.} 12. exf6 axb3 13. fxg7 Rg8) 12. Nxd4 $1 $16 {[%emt 0:02:57]} (12. exf6 dxc3 13. O-O cxb2 14. fxg7 Rg8 $15) 12... Nxd4 {[%emt 0:04:37]} (12... Nd5 $16 13. Nxc6 bxc6) 13. Bxd4 {[%emt 0:00:23]} Nd5 {[%emt 0:04:34]} (13... Qd5 $2 14. exf6 g6 15. Qd2 $1 $18) 14. O-O {[%emt 0:04:37]} O-O {[%emt 0:03:07]} (14... Nxc3 {keeps fighting.} 15. bxc3 Qd5) 15. Ne4 $18 {[%emt 0:02:00]} (15. Qh5 Nf6 16. exf6 Qxd4+ 17. Kh1 g6) 15... Nxf4 $2 {[%emt 0:03:06]} (15... Be7 {is a better chance.} 16. c3 g6) 16. Nf6+ {[%emt 0:00:13]} gxf6 {[%emt 0:02:51]} 17. Rxf4 {[%emt 0:00:57]} f5 {[%emt 0:00:59]} 18. Qh5 {[%emt 0:00:36]} Be7 {[%emt 0:01:00] Against Rh4} 19. c3 {[%emt 0:03:30]} Kh8 {[%emt 0:04:24] [#]} 20. Kh1 $2 $40 {[%emt 0:04:46][%mdl 128] White has some attack.} (20. Bxf5 $1 $18 {[%mdl 512]} exf5 21. e6+ Qxd4+ 22. cxd4 Bxe6 23. d5) 20... Bd7 $2 {[%emt 0:03:34][%mdl 8192] [#] This move loses the game for Black.} (20... Rg8 $14) 21. Rxf5 $1 {[%emt 0:02:15][%mdl 512] White mates.} exf5 {[%emt 0:04:20]} 22. e6+ {[%emt 0:00:23][%mdl 64] Discovered Attack} f6 {[%emt 0:03:09]} 23. Bxf5 {[%emt 0:00:08][%csl Gf5][%cal Rh5h7]} Rf7 {[%emt 0:01:27]} 24. Qxf7 {[%emt 0:00:06][%csl Gf5][%cal Rf7h7]} Qg8 {[%emt 0:00:36]} 25. Qxe7 {[%emt 0:00:08]} Bc6 {[%emt 0:00:31]} 26. Bxf6+ {[%emt 0:00:08]} Qg7 {[%emt 0:00:06]} 27. Qxg7# {[%emt 0:00:08] Weighted Error Value: White=0.45/Black=0.65} 1-0

[Event "GER-ch Youth-U14 2022"]
[Site "Willingen"]
[Date "2022.06.05"]
[Round "1.14"]
[White "Kocharin, Timur"]
[Black "Vihan, Shourya"]
[Result "1-0"]
[ECO "D51"]
[WhiteElo "1867"]
[BlackElo "1385"]
[Annotator "NA RC COMBH"]
[PlyCount "105"]
[EventDate "2022.06.05"]
[EventType "swiss"]
[EventRounds "9"]
[EventCountry "GER"]
[SourceTitle "playchess.com"]
[Source "ChessBase"]
[SourceQuality "1"]
[TimeControl "40/4500+30:900+30"]

1. d4 {[%emt 0:00:00]} d5 {[%emt 0:00:00]} 2. c4 {[%emt 0:00:00]} e6 {[%emt 0:00:00]} 3. Nc3 {[%emt 0:00:00]} Nf6 {[%emt 0:00:00]} 4. Bg5 {[%emt 0:00:00]} Nbd7 {[%emt 0:00:00]} 5. e3 {[%emt 0:00:00]} c6 {[%emt 0:00:00]} 6. cxd5 {[%emt 0:00:00]} exd5 {[%emt 0:00:00]} 7. Bd3 {[%emt 0:00:00]} Be7 {[%emt 0:00:00]} 8. Nge2 {[%emt 0:00:00]} O-O {[%emt 0:00:00]} 9. Qc2 {[%emt 0:00:00]} h6 {[%emt 0:00:00]} 10. Bh4 {[%emt 0:00:00]} Nb6 {[%emt 0:00:00]} 11. O-O {[%emt 0:00:00]} Be6 {[%emt 0:01:22]} 12. Rae1 {[%emt 0:10:11]} Rc8 {[%emt 0:11:43]} 13. Nc1 {[%emt 0:02:00]} Nc4 {[%emt 0:11:45]} 14. Nb3 {[%emt 0:12:12]} Nd6 {[%emt 0:07:26]} 15. f3 {[%emt 0:02:24]} Nd7 {[%emt 0:05:57]} 16. Bxe7 {[%emt 0:02:37]} Qxe7 {[%emt 0:00:06]} 17. e4 {[%emt 0:03:59]} dxe4 {[%emt 0:02:56]} 18. fxe4 {[%emt 0:01:04]} Bxb3 {[%emt 0:05:07]} 19. Qxb3 {[%emt 0:03:10]} c5 {[%emt 0:06:09] [#]} 20. e5 $11 {[%emt 0:20:33]} (20. Nd5 $1 $16 {[%cal Rd5e7]} Qe6 21. Nf4 (21. e5 c4 $15) 21... Qxb3 22. axb3) 20... c4 {[%emt 0:09:37]} 21. Qb4 {[%emt 0:02:32]} Nf5 {[%emt 0:07:59]} 22. Qxe7 {[%emt 0:04:49]} Nxe7 {[%emt 0:00:02]} 23. Be4 {[%emt 0:00:47]} Rb8 {[%emt 0:02:21]} 24. Nb5 {[%emt 0:01:35]} a6 {[%emt 0:00:38]} 25. Nd6 {[%emt 0:00:32]} b5 {[%emt 0:04:23]} 26. Bb7 {[%emt 0:04:08]} Rxb7 {[%emt 0:01:02]} 27. Nxb7 {[%emt 0:00:07]} Nc6 {[%emt 0:00:17]} 28. Re4 {[%emt 0:00:37]} Nb4 {[%emt 0:00:53]} 29. Nc5 {[%emt 0:01:39]} Nxc5 {[%emt 0:00:48]} 30. dxc5 {[%emt 0:00:37]} Nd3 {[%emt 0:01:06]} 31. e6 {[%emt 0:00:17]} fxe6 {[%emt 0:02:07]} 32. Rxf8+ {[%emt 0:00:17]} Kxf8 {[%emt 0:00:01]} 33. Rxe6 {[%emt 0:00:36]} Nxc5 {[%emt 0:00:05]} 34. Rc6 {[%emt 0:01:01]} Nd3 {[%emt 0:00:36]} 35. b3 {[%emt 0:00:10]} Nb4 {[%emt 0:01:20]} 36. Rc8+ {[%emt 0:00:42]} Ke7 {[%emt 0:00:57]} 37. bxc4 {[%emt 0:00:04]} Kd7 {[%emt 0:02:29]} 38. Rg8 {[%emt 0:01:18]} bxc4 {[%emt 0:00:54]} 39. Kf2 {[%emt 0:00:29]} Kc6 {[%emt 0:00:40]} 40. a4 {[%emt 0:00:35]} Kc5 {[%emt 0:01:27]} 41. Ke3 {[%emt 0:15:42]} Nd5+ {[%emt 0:15:30]} 42. Kd2 {[%emt 0:00:06]} Kb4 {[%emt 0:01:32]} 43. Rxg7 {[%emt 0:02:50]} Kxa4 {[%emt 0:01:58]} 44. Rd7 {[%emt 0:00:43]} Nb6 {[%emt 0:00:00]} 45. Rd6 {[%emt 0:00:00]} Kb5 {[%emt 0:00:00]} 46. Rxh6 {[%emt 0:00:00]} a5 {[%emt 0:00:00]} 47. Rxb6+ {[%emt 0:00:00]} Kxb6 {[%emt 0:00:00]} 48. Kc3 {[%emt 0:00:00]} Kc5 {[%emt 0:00:00]} 49. h4 {[%emt 0:00:00]} Kd5 {[%emt 0:00:00]} 50. h5 {[%emt 0:00:00]} Ke5 {[%emt 0:00:00]} 51. Kxc4 {[%emt 0:00:00]} Kf5 {[%emt 0:00:00]} 52. g4+ {[%emt 0:00:00]} Kg5 {[%emt 0:00:00]} 53. Kb5 {[%emt 0:00:00]} 1-0

[Event "GER-ch Youth-U14 2022"]
[Site "Willingen"]
[Date "2022.06.05"]
[Round "1.15"]
[White "Shapiro, Danil"]
[Black "Krüger, Arthur"]
[Result "0-1"]
[ECO "C00"]
[WhiteElo "1468"]
[BlackElo "1988"]
[Annotator "TA"]
[PlyCount "74"]
[EventDate "2022.06.05"]
[EventType "swiss"]
[EventRounds "9"]
[EventCountry "GER"]
[SourceTitle "playchess.com"]
[Source "ChessBase"]
[SourceQuality "1"]
[TimeControl "40/4500+30:900+30"]

{[%evp 9,74,-7,12,-27,31,7,23,-6,25,-3,6,7,9,27,21,14,54,0,0,0,0,0,0,0,0,0,8,0,10,6,6,11,51,0,0,0,0,-52,-57,-58,-22,-138,-132,-123,-78,-590,-243,-245,-219,-249,-258,-451,-458,-458,-437,-435,-437,-427,-426,-382,-360,-396,-400,-507,-512,-658,-629]} 1. e4 {[%emt 0:00:00]} e6 {[%emt 0:00:00]} 2. d3 {[%emt 0:00:00]} d5 {[%emt 0:00:00]} 3. Nd2 {[%emt 0:00:00]} Nc6 {[%emt 0:00:00]} 4. Ngf3 {[%emt 0:00:00]} Nf6 {[%emt 0:00:00]} 5. g3 {[%emt 0:00:00]} e5 {[%emt 0:00:00]} 6. Bg2 {[%emt 0:00:00] C00: French: Unusual White 2nd moves.} Bd6 {[%emt 0:00:00]} (6... dxe4 $11 7. dxe4 Bc5) 7. O-O {[%emt 0:00:00]} O-O {[%emt 0:00:00]} 8. Re1 {[%emt 0:00:00] White has an edge.} Re8 {[%emt 0:00:00]} 9. a4 {[%emt 0:00:00] [#]} (9. exd5 {keeps more tension.} Nxd5 10. Nc4 Bg4 11. c3) 9... a5 $146 {[%emt 0:00:00]} ({Predecessor:} 9... Bc5 10. Nb3 Bf8 11. exd5 Nxd5 12. Bd2 Bg4 13. h3 Bh5 14. a5 a6 15. Be3 Nxe3 16. Rxe3 {0-1 (56) Fraga,H (1773)-Acosta,P (1971) Curitiba 2018}) 10. exd5 {[%emt 0:00:00]} Nxd5 {[%emt 0:00:00]} 11. Nc4 {[%emt 0:00:00]} h6 {[%emt 0:00:00]} 12. c3 {[%emt 0:13:25]} Rb8 {[%emt 0:09:08]} (12... Bf5) 13. Nd4 {[%emt 0:04:40]} exd4 $11 {[%emt 0:11:51]} 14. Rxe8+ {[%emt 0:00:07]} Qxe8 {[%emt 0:00:05]} 15. Bxd5 {[%emt 0:00:08]} Be6 {[%emt 0:12:07]} 16. Nxd6 {[%emt 0:01:19]} cxd6 {[%emt 0:00:29][%cal Bc7d6,Bd6d5,Bd5d4][%mdl 32]} 17. Bg2 {[%emt 0:00:36]} d5 {[%emt 0:12:55]} 18. Qb3 {[%emt 0:08:02]} dxc3 {[%emt 0:02:27]} 19. bxc3 {[%emt 0:00:22]} d4 {[%emt 0:02:52]} 20. c4 {[%emt 0:00:11]} Qd7 {[%emt 0:02:14]} 21. Rb1 {[%emt 0:04:38]} (21. Bd2 $14) 21... Bf5 {[%emt 0:10:33][%cal Be6f5,Bf5d3,Bd3e2][%mdl 32]} 22. Bd2 {[%emt 0:05:14]} Re8 {[%emt 0:08:28]} 23. Bf1 {[%emt 0:20:18]} ({Don't blunder} 23. Qxb7 $2 Rb8 24. Qxb8+ Nxb8 25. Rxb8+ Kh7 $19) (23. Qb5 $11) 23... Ne5 $15 {[%emt 0:02:33] White must now prevent ...Nf3+.} 24. Bg2 {[%emt 0:15:18] Prevents Nf3+.} Bxd3 {[%emt 0:01:09]} (24... b6 $5) 25. Rc1 {[%emt 0:00:52]} (25. Re1 $11 {was the only way to keep the balance.} Bxc4 26. Qxb7 Qxb7 27. Bxb7) 25... Be2 $36 {[%emt 0:03:55][%cal Ob7b6][%mdl 2048] Black has strong initiative. Black is more active.} 26. Bd5 {[%emt 0:05:56]} Nd3 {[%emt 0:01:28] Inhibits Re1.} 27. Rc2 $2 {[%emt 0:01:03][%mdl 8192] Now White is beyond hope.} (27. Ra1 $17 {prevents the worst.}) 27... Nc5 {[%emt 0:00:49]} (27... Qf5 $142 28. f4 Nxf4 $1 {[%mdl 512]} 29. Bxf4 Bd1) 28. Qb5 $19 {[%emt 0:00:30] [#]} Qxb5 {[%emt 0:00:37]} 29. axb5 {[%emt 0:01:41]} b6 {[%emt 0:01:07]} 30. f3 $2 {[%emt 0:00:20]} (30. h4 {was worth a try.}) 30... Bd3 {[%emt 0:00:51]} 31. Rc1 {[%emt 0:01:57]} Nb3 {[%emt 0:00:29][%csl LRc1,LRd2]} 32. Re1 {[%emt 0:00:57]} Rc8 {[%emt 0:01:01]} 33. Bf4 {[%emt 0:00:55]} Bxc4 {[%emt 0:00:35]} 34. Bb7 {[%emt 0:01:03]} Rc5 {[%emt 0:01:45]} 35. Re8+ {[%emt 0:00:19]} Kh7 {[%emt 0:00:07]} 36. Be4+ {[%emt 0:00:05]} f5 {[%emt 0:00:19]} 37. Bc6 {[%emt 0:01:22]} Bxb5 {Weighted Error Value: White=0.55/Black=0.25 (precise)} 0-1

[Event "GER-ch Youth-U14 2022"]
[Site "Willingen"]
[Date "2022.06.05"]
[Round "1.16"]
[White "Sauer, Tim"]
[Black "Sinka, Silas"]
[Result "0-1"]
[ECO "C11"]
[WhiteElo "1769"]
[BlackElo "1386"]
[Annotator "NA RC COMBH"]
[PlyCount "62"]
[EventDate "2022.06.05"]
[EventType "swiss"]
[EventRounds "9"]
[EventCountry "GER"]
[SourceTitle "playchess.com"]
[Source "ChessBase"]
[SourceQuality "1"]
[TimeControl "40/4500+30:900+30"]

1. e4 {[%emt 0:00:00]} e6 {[%emt 0:00:00]} 2. d4 {[%emt 0:00:00]} d5 {[%emt 0:00:00]} 3. Nc3 {[%emt 0:00:00]} Nf6 {[%emt 0:00:00]} 4. e5 {[%emt 0:00:00]} Nfd7 {[%emt 0:00:00]} 5. f4 {[%emt 0:00:00]} c5 {[%emt 0:00:00]} 6. Nf3 {[%emt 0:00:00]} Nc6 {[%emt 0:00:00]} 7. Be3 {[%emt 0:00:00]} cxd4 {[%emt 0:00:00]} 8. Nxd4 {[%emt 0:00:00]} Bc5 {[%emt 0:00:00]} 9. Qd2 {[%emt 0:00:00]} Nxd4 {[%emt 0:00:00]} 10. Bxd4 {[%emt 0:00:00]} Bxd4 {[%emt 0:00:00]} 11. Qxd4 {[%emt 0:00:00]} a6 {[%emt 0:00:00]} 12. O-O-O {[%emt 0:05:01]} Qb6 {[%emt 0:00:00]} 13. Qd2 {[%emt 0:09:47]} Qc6 {[%emt 0:00:00]} 14. Ne2 {[%emt 0:02:59]} b5 {[%emt 0:05:23]} 15. Nd4 {[%emt 0:00:46]} Qc7 {[%emt 0:01:29]} 16. Bd3 {[%emt 0:02:00]} O-O {[%emt 0:02:09]} 17. Qf2 {[%emt 0:04:28]} b4 {[%emt 0:02:18]} 18. Qh4 {[%emt 0:02:09]} g6 {[%emt 0:00:29]} 19. Qg5 {[%emt 0:19:57]} a5 {[%emt 0:08:43]} 20. h4 {[%emt 0:03:44]} Ba6 {[%emt 0:04:56]} 21. Bxa6 {[%emt 0:21:30]} Rxa6 {[%emt 0:00:11]} 22. h5 {[%emt 0:00:33]} Qc4 {[%emt 0:01:01]} 23. hxg6 {[%emt 0:00:26]} fxg6 {[%emt 0:00:31]} 24. Kb1 {[%emt 0:08:05]} Rf7 {[%emt 0:04:13]} 25. Rd3 {[%emt 0:01:55]} a4 {[%emt 0:01:57]} 26. Rdh3 {[%emt 0:01:52]} Qxd4 {[%emt 0:00:55]} 27. Qxg6+ {[%emt 0:00:34]} Rg7 {[%emt 0:04:12]} 28. Qe8+ {[%emt 0:01:01]} Nf8 {[%emt 0:00:06]} 29. f5 {[%emt 0:02:20]} Rxg2 {[%emt 0:00:43]} 30. c3 {[%emt 0:00:49]} Rg1+ {[%emt 0:00:23]} 31. Kc2 {[%emt 0:00:29]} Qd1# 0-1

[Event "GER-ch Youth-U14 2022"]
[Site "Willingen"]
[Date "2022.06.05"]
[Round "1.17"]
[White "Weber, Nikita"]
[Black "Jahnz, Laurin"]
[Result "0-1"]
[ECO "D10"]
[WhiteElo "1264"]
[BlackElo "1681"]
[Annotator "NA RC COMBH"]
[PlyCount "118"]
[EventDate "2022.06.05"]
[EventType "swiss"]
[EventRounds "9"]
[EventCountry "GER"]
[SourceTitle "playchess.com"]
[Source "ChessBase"]
[SourceQuality "1"]
[TimeControl "40/4500+30:900+30"]

1. c4 {[%emt 0:00:00]} c6 {[%emt 0:00:00]} 2. d4 {[%emt 0:00:00]} d5 {[%emt 0:00:00]} 3. cxd5 {[%emt 0:00:00]} cxd5 {[%emt 0:00:00]} 4. Nc3 {[%emt 0:00:00]} Nf6 {[%emt 0:00:00]} 5. Nf3 {[%emt 0:00:00]} Nc6 {[%emt 0:00:00]} 6. a3 {[%emt 0:00:00]} g6 {[%emt 0:04:49]} 7. Bf4 {[%emt 0:00:00]} Bg7 {[%emt 0:06:36]} 8. e3 {[%emt 0:00:00]} O-O {[%emt 0:12:58]} 9. Be2 {[%emt 0:00:00]} Nh5 {[%emt 0:04:51]} 10. Bg3 {[%emt 0:00:00]} Nxg3 {[%emt 0:10:28]} 11. hxg3 {[%emt 0:00:00]} Rb8 {[%emt 0:05:46]} 12. Qb3 {[%emt 0:00:00]} e6 {[%emt 0:00:44]} 13. O-O-O {[%emt 0:00:27]} a6 {[%emt 0:02:53]} 14. Qc2 {[%emt 0:02:38]} Bd7 {[%emt 0:03:39]} 15. Bd3 {[%emt 0:01:05]} b5 {[%emt 0:03:54]} 16. Rh2 {[%emt 0:03:03]} b4 {[%emt 0:02:28]} 17. Nb1 {[%emt 0:00:52]} Na5 {[%emt 0:04:20]} 18. axb4 {[%emt 0:00:46]} Rxb4 {[%emt 0:00:17]} 19. Rdh1 {[%emt 0:00:18]} Ba4 {[%emt 0:01:50]} 20. Qc3 {[%emt 0:05:30]} Qb8 {[%emt 0:02:13]} 21. Qa3 {[%emt 0:04:40]} Nb3+ {[%emt 0:06:53]} 22. Kd1 {[%emt 0:00:11]} Nc5+ {[%emt 0:01:32]} 23. Bc2 {[%emt 0:00:17]} Rxb2 {[%emt 0:01:45]} 24. Bxa4 {[%emt 0:00:47]} Rxb1+ {[%emt 0:00:11]} 25. Ke2 {[%emt 0:00:17]} Qb2+ {[%emt 0:00:15]} 26. Qxb2 {[%emt 0:00:21]} Rxb2+ {[%emt 0:00:03]} 27. Bc2 {[%emt 0:00:14]} Rxc2+ {[%emt 0:01:26]} 28. Kd1 {[%emt 0:00:08]} Rxf2 {[%emt 0:00:18]} 29. dxc5 {[%emt 0:00:17]} Rb8 {[%emt 0:00:42]} 30. Ke1 {[%emt 0:00:15]} Rbb2 {[%emt 0:00:26]} 31. Nd4 {[%emt 0:00:25]} Bxd4 {[%emt 0:00:45]} 32. exd4 {[%emt 0:00:07]} Rfe2+ {[%emt 0:01:14]} 33. Kd1 {[%emt 0:00:13]} Re4 {[%emt 0:01:03]} 34. Rxh7 Rb1+ {[%emt 0:00:24]} 35. Kc2 {[%emt 0:00:56]} Rxh1 {[%emt 0:00:06]} 36. Rxh1 {[%emt 0:00:03]} Rxd4 {[%emt 0:00:05]} 37. Ra1 {[%emt 0:00:18]} Rc4+ {[%emt 0:00:08]} 38. Kd3 {[%emt 0:00:03]} Rxc5 {[%emt 0:00:06]} 39. Rxa6 {[%emt 0:00:02]} Rc4 {[%emt 0:00:13]} 40. Ke3 {[%emt 0:00:07]} Kg7 {[%emt 0:00:07]} 41. Ra7 {[%emt 0:15:11]} Kf6 {[%emt 0:15:14]} 42. Kf3 {[%emt 0:00:04]} g5 {[%emt 0:00:21]} 43. Ra3 {[%emt 0:00:08]} g4+ {[%emt 0:01:25]} 44. Ke3 {[%emt 0:00:03]} Ke5 {[%emt 0:00:16]} 45. Ra5 {[%emt 0:00:11]} Rc3+ {[%emt 0:00:26]} 46. Kf2 {[%emt 0:00:06]} Ke4 {[%emt 0:00:20]} 47. Rb5 {[%emt 0:00:15]} e5 {[%emt 0:00:15]} 48. Rb2 {[%emt 0:00:10]} d4 {[%emt 0:00:40]} 49. Ra2 {[%emt 0:00:10]} f5 {[%emt 0:00:46]} 50. Rb2 {[%emt 0:00:16]} Kd3 {[%emt 0:01:14]} 51. Rb5 {[%emt 0:00:08]} Rc2+ {[%emt 0:00:05]} 52. Kg1 {[%emt 0:00:07]} Ke4 {[%emt 0:00:02]} 53. Rb4 {[%emt 0:00:08]} Ke3 {[%emt 0:00:16]} 54. Rb5 {[%emt 0:00:07]} e4 {[%emt 0:00:31]} 55. Rxf5 {[%emt 0:00:03]} d3 {[%emt 0:00:08]} 56. Rf1 {[%emt 0:00:17]} d2 {[%emt 0:00:12]} 57. Kh2 {[%emt 0:00:04]} Rc1 {[%emt 0:04:53]} 58. Rd1 {[%emt 0:00:27]} Rc6 {[%emt 0:00:58]} 59. Kg1 {[%emt 0:00:08]} Ke2 {[%emt 0:00:16]} 0-1

[Event "GER-ch Youth-U14 2022"]
[Site "Willingen"]
[Date "2022.06.05"]
[Round "1.18"]
[White "Sommer, Justus"]
[Black "Schreidl, Michael"]
[Result "0-1"]
[ECO "C50"]
[WhiteElo "1868"]
[BlackElo "1614"]
[Annotator "NA RC COMBH"]
[PlyCount "58"]
[EventDate "2022.06.05"]
[EventType "swiss"]
[EventRounds "9"]
[EventCountry "GER"]
[SourceTitle "playchess.com"]
[Source "ChessBase"]
[SourceQuality "1"]
[TimeControl "40/4500+30:900+30"]

1. e4 {[%emt 0:00:00]} e5 {[%emt 0:00:00]} 2. Nf3 {[%emt 0:00:00]} Nc6 {[%emt 0:00:00]} 3. Bc4 {[%emt 0:00:00]} Bc5 {[%emt 0:00:00]} 4. O-O {[%emt 0:00:00]} Nf6 {[%emt 0:00:00]} 5. d4 {[%emt 0:00:00]} Bxd4 {[%emt 0:00:00]} 6. Nxd4 {[%emt 0:00:00]} Nxd4 {[%emt 0:00:00]} 7. Bg5 {[%emt 0:00:00]} h6 {[%emt 0:00:00]} 8. Bh4 {[%emt 0:00:00]} g5 {[%emt 0:08:10]} (8... d6 $15 {keeps the upper hand.}) 9. f4 {[%emt 0:00:00]} d6 {[%emt 0:16:53]} 10. fxg5 {[%emt 0:00:00]} Bg4 {[%emt 0:00:57] [#]} 11. Qd2 $2 {[%emt 0:08:10]} (11. Qe1 $1 $18 hxg5 12. Bxg5 Nf3+ 13. gxf3) 11... Nxe4 $17 {[%emt 0:04:50]} 12. Bxf7+ {[%emt 0:02:15]} Kd7 {[%emt 0:00:30]} 13. Qe3 {[%emt 0:01:48]} Ne2+ {[%emt 0:00:45]} 14. Kh1 hxg5 {[%emt 0:00:30]} 15. g3 {[%emt 0:17:42]} gxh4 {[%emt 0:04:07]} 16. Qxe4 {[%emt 0:02:15]} Nxg3+ {[%emt 0:08:12]} 17. hxg3 {[%emt 0:02:16]} hxg3+ {[%emt 0:00:07]} 18. Kg1 {[%emt 0:03:10]} Qh4 {[%emt 0:00:15]} 19. Qg2 {[%emt 0:01:45]} Bh3 {[%emt 0:00:37]} 20. Qd5 {[%emt 0:05:04]} c6 {[%emt 0:01:56]} 21. Qd3 {[%emt 0:07:50]} Bxf1 {[%emt 0:00:31]} 22. Qf5+ {[%emt 0:01:14]} Kc7 {[%emt 0:00:12]} 23. Kxf1 {[%emt 0:00:07]} Qh1+ {[%emt 0:00:24]} 24. Ke2 {[%emt 0:00:06]} Rh2+ {[%emt 0:00:10]} 25. Kd3 {[%emt 0:00:39]} Qd1+ {[%emt 0:00:04]} 26. Kc3 {[%emt 0:00:08]} Rf2 {[%emt 0:00:17]} 27. Qh7 {[%emt 0:01:12]} Rf3+ {[%emt 0:00:24]} 28. Kb4 {[%emt 0:00:20]} a5+ {[%emt 0:00:28]} 29. Ka4 {[%emt 0:00:17]} b5# 0-1

[Event "GER-ch Youth-U14 2022"]
[Site "Willingen"]
[Date "2022.06.05"]
[Round "1.20"]
[White "Uhlmann, Tim"]
[Black "Goldinov, Daniel"]
[Result "0-1"]
[ECO "B10"]
[WhiteElo "1776"]
[BlackElo "1626"]
[Annotator "NA RC COMBH"]
[PlyCount "134"]
[EventDate "2022.06.05"]
[EventType "swiss"]
[EventRounds "9"]
[EventCountry "GER"]
[SourceTitle "playchess.com"]
[Source "ChessBase"]
[SourceQuality "1"]
[TimeControl "40/4500+30:900+30"]

1. e4 {[%emt 0:00:00]} c6 {[%emt 0:00:00]} 2. c4 {[%emt 0:00:00]} d5 {[%emt 0:00:00]} 3. exd5 {[%emt 0:00:00]} cxd5 {[%emt 0:00:00]} 4. cxd5 {[%emt 0:00:00]} Nf6 {[%emt 0:00:00]} 5. Nc3 {[%emt 0:00:00]} Nxd5 {[%emt 0:00:00]} 6. Nf3 {[%emt 0:00:00]} e6 {[%emt 0:00:00]} 7. d4 {[%emt 0:00:00]} Nxc3 {[%emt 0:00:00]} 8. bxc3 {[%emt 0:00:00]} Qc7 {[%emt 0:00:00]} 9. Qc2 {[%emt 0:00:00]} Nd7 {[%emt 0:00:00]} 10. Bd3 {[%emt 0:00:00]} b6 {[%emt 0:00:00]} 11. Bxh7 {[%emt 0:00:00]} Rxh7 {[%emt 0:00:00]} 12. Qxh7 {[%emt 0:00:00]} Qxc3+ {[%emt 0:00:00]} 13. Kd1 {[%emt 0:00:00]} Bb7 {[%emt 0:00:20]} 14. Bb2 {[%emt 0:24:30]} Bxf3+ {[%emt 0:02:17]} 15. gxf3 {[%emt 0:00:13]} Qxf3+ {[%emt 0:04:58]} 16. Ke1 {[%emt 0:03:26]} Bb4+ {[%emt 0:06:23]} 17. Kf1 {[%emt 0:00:10]} Qxh1+ {[%emt 0:01:29]} 18. Ke2 {[%emt 0:00:05]} Qd5 {[%emt 0:09:28]} 19. Qxg7 {[%emt 0:18:02]} Qb5+ {[%emt 0:06:55]} 20. Kf3 {[%emt 0:00:34]} Qf5+ {[%emt 0:03:36]} 21. Kg2 {[%emt 0:01:28]} Qe4+ {[%emt 0:07:39]} 22. Kg1 {[%emt 0:01:26]} Qe2 {[%emt 0:09:23]} 23. Qh8+ {[%emt 0:07:11]} Nf8 {[%emt 0:04:13]} 24. d5 {[%emt 0:06:57]} Qg4+ {[%emt 0:03:14]} 25. Kf1 {[%emt 0:00:30]} Qc4+ {[%emt 0:01:02]} 26. Kg1 {[%emt 0:00:04]} Qxd5 {[%emt 0:01:40]} 27. Bf6 {[%emt 0:09:26]} Qf5 {[%emt 0:06:13]} 28. Qh4 {[%emt 0:03:44]} Ng6 {[%emt 0:11:22]} 29. Qxb4 {[%emt 0:00:47]} Qxf6 {[%emt 0:00:37]} 30. Qb5+ {[%emt 0:00:55]} Kf8 {[%emt 0:00:32]} 31. Rc1 {[%emt 0:00:51]} a6 {[%emt 0:02:16]} 32. Qc6 {[%emt 0:00:49]} Qg5+ {[%emt 0:01:07]} 33. Kf1 {[%emt 0:02:08]} Qb5+ {[%emt 0:00:35]} 34. Qxb5 {[%emt 0:00:07]} axb5 {[%emt 0:00:02]} 35. Rc2 {[%emt 0:00:08]} Ne5 {[%emt 0:00:30]} 36. Rb2 {[%emt 0:02:38]} Nd7 {[%emt 0:02:22]} 37. Ke2 {[%emt 0:02:24]} Ra3 {[%emt 0:00:50]} 38. f3 {[%emt 0:01:51]} Ne5 {[%emt 0:00:54]} 39. f4 {[%emt 0:02:51]} Nc6 {[%emt 0:00:43]} 40. Ke1 {[%emt 0:01:27]} b4 {[%emt 0:00:47]} 41. Kf2 {[%emt 0:15:29]} Rc3 {[%emt 0:15:30]} 42. Kg2 {[%emt 0:00:39]} Rc4 {[%emt 0:00:55]} 43. Kf3 {[%emt 0:00:35]} Nd4+ {[%emt 0:00:44]} 44. Ke3 {[%emt 0:00:34]} Nf5+ {[%emt 0:00:47]} 45. Kf3 {[%emt 0:00:07]} Ke7 {[%emt 0:01:15]} 46. Kg4 {[%emt 0:00:08]} Ne3+ {[%emt 0:00:15]} 47. Kg5 {[%emt 0:00:31]} Nd5 {[%emt 0:00:42]} 48. h4 {[%emt 0:00:14]} f6+ {[%emt 0:01:04]} 49. Kh6 {[%emt 0:00:16]} Rxf4 {[%emt 0:00:13]} 50. h5 {[%emt 0:00:07]} Kf7 {[%emt 0:00:31]} 51. Rg2 {[%emt 0:00:40]} Ne7 {[%emt 0:00:37]} 52. Rg7+ {[%emt 0:01:13]} Kf8 {[%emt 0:00:22]} 53. Rg2 {[%emt 0:00:50]} Rh4 {[%emt 0:01:24]} 54. Rg1 {[%emt 0:00:30]} Rh2 {[%emt 0:00:37]} 55. Rg4 {[%emt 0:00:41]} Rxa2 {[%emt 0:00:52]} 56. Rxb4 {[%emt 0:00:05]} Rg2 {[%emt 0:00:23]} 57. Rxb6 {[%emt 0:00:47]} Kf7 {[%emt 0:00:27]} 58. Rb7 {[%emt 0:00:00]} f5 {[%emt 0:00:00]} 59. Kh7 {[%emt 0:00:00]} Rg7+ {[%emt 0:00:00]} 60. Kh8 {[%emt 0:00:00]} Kf6 {[%emt 0:00:00]} 61. Rb4 {[%emt 0:00:00]} Rg4 {[%emt 0:00:00]} 62. Rb8 {[%emt 0:00:00]} Kf7 {[%emt 0:00:00]} 63. h6 {[%emt 0:00:00]} Ng6+ {[%emt 0:00:00]} 64. Kh7 {[%emt 0:00:00]} Nf8+ {[%emt 0:00:00]} 65. Rxf8+ {[%emt 0:00:00]} Kxf8 {[%emt 0:00:00]} 66. Kh8 {[%emt 0:00:00]} Rh4 {[%emt 0:00:00]} 67. h7 {[%emt 0:00:00]} Rxh7+ {[%emt 0:00:00]} 0-1